[Event "Titled Tuesday Blitz March 01 Early 2022"]
[White "Urazayev, Arystanbek"]
[Black "Brodowski, Piotr"]
[WhiteFideId "13709810"]
[BlackFideId "1124480"]
[WhiteElo "2321"]
[BlackElo "2422"]
[Result "1-0"]
[Round "09"]
[TimeControl "180+1"]
[Date "2022.03.01"]
[WhiteClock "0:00:22"]
[BlackClock "0:00:01"]

1. e4 {[%clk 0:03:00]}  c5 {[%clk 0:02:57]} 2. Nf3 {[%clk 0:03:01]}  Nc6 {[%clk 0:02:55]} 3. Bb5 {[%clk 0:03:01]}  e6 {[%clk 0:02:44]} 4. O-O {[%clk 0:03:01]}  Nge7 {[%clk 0:02:44]} 5. Re1 {[%clk 0:03:01]}  a6 {[%clk 0:02:43]} 6. Bf1 {[%clk 0:02:59]}  Ng6 {[%clk 0:02:35]} 7. c3 {[%clk 0:02:58]}  d5 {[%clk 0:02:24]} 8. exd5 {[%clk 0:02:57]}  Qxd5 {[%clk 0:02:24]} 9. d4 {[%clk 0:02:58]}  cxd4 {[%clk 0:02:21]} 10. cxd4 {[%clk 0:02:58]}  Be7 {[%clk 0:02:21]} 11. Nc3 {[%clk 0:02:58]}  Qh5 {[%clk 0:02:14]} 12. d5 {[%clk 0:02:59]}  exd5 {[%clk 0:02:14]} 13. Nxd5 {[%clk 0:02:58]}  O-O {[%clk 0:02:12]} 14. Nxe7+ {[%clk 0:02:57]}  Ncxe7 {[%clk 0:02:12]} 15. Be3 {[%clk 0:02:54]}  Be6 {[%clk 0:02:09]} 16. Nd4 {[%clk 0:02:39]}  Qxd1 {[%clk 0:02:06]} 17. Rexd1 {[%clk 0:02:37]}  Bd5 {[%clk 0:02:06]} 18. b3 {[%clk 0:02:35]}  Rfd8 {[%clk 0:02:05]} 19. Rac1 {[%clk 0:02:35]}  Rac8 {[%clk 0:02:04]} 20. f3 {[%clk 0:02:33]}  f6 {[%clk 0:02:00]} 21. Kf2 {[%clk 0:02:27]}  Kf7 {[%clk 0:01:59]} 22. g3 {[%clk 0:02:26]}  Ne5 {[%clk 0:01:57]} 23. h4 {[%clk 0:02:23]}  h5 {[%clk 0:01:50]} 24. Be2 {[%clk 0:02:23]}  N7c6 {[%clk 0:01:35]} 25. Nxc6 {[%clk 0:02:20]}  Bxc6 {[%clk 0:01:32]} 26. Bb6 {[%clk 0:02:17]}  Rxd1 {[%clk 0:01:30]} 27. Rxd1 {[%clk 0:02:18]}  Bb5 {[%clk 0:01:28]} 28. Bxb5 {[%clk 0:02:15]}  axb5 {[%clk 0:01:27]} 29. Rd2 {[%clk 0:02:15]}  Rc3 {[%clk 0:01:21]} 30. Be3 {[%clk 0:02:15]}  Ke6 {[%clk 0:01:14]} 31. Ke2 {[%clk 0:02:15]}  g5 {[%clk 0:01:00]} 32. hxg5 {[%clk 0:02:04]}  fxg5 {[%clk 0:01:00]} 33. Bd4 {[%clk 0:02:04]}  Rc7 {[%clk 0:00:51]} 34. Ke3 {[%clk 0:01:52]}  Rf7 {[%clk 0:00:45]} 35. Bxe5 {[%clk 0:01:46]}  Kxe5 {[%clk 0:00:46]} 36. Rd8 {[%clk 0:01:45]}  Rh7 {[%clk 0:00:46]} 37. Rg8 {[%clk 0:01:42]}  Kf6 {[%clk 0:00:46]} 38. Kf2 {[%clk 0:01:39]}  h4 {[%clk 0:00:46]} 39. Kg2 {[%clk 0:01:35]}  hxg3 {[%clk 0:00:27]} 40. Kxg3 {[%clk 0:01:36]}  Rc7 {[%clk 0:00:28]} 41. Rb8 {[%clk 0:01:32]}  b4 {[%clk 0:00:27]} 42. Kg4 {[%clk 0:01:30]}  Rd7 {[%clk 0:00:27]} 43. Rf8+ {[%clk 0:01:30]}  Ke7 {[%clk 0:00:13]} 44. Rf5 {[%clk 0:01:26]}  Rd2 {[%clk 0:00:14]} 45. Rb5 {[%clk 0:01:22]}  Rxa2 {[%clk 0:00:14]} 46. Rxb7+ {[%clk 0:01:22]}  Kf6 {[%clk 0:00:15]} 47. Rb6+ {[%clk 0:01:21]}  Ke5 {[%clk 0:00:15]} 48. Rb5+ {[%clk 0:01:21]}  Kf6 {[%clk 0:00:14]} 49. Rb6+ {[%clk 0:01:11]}  Ke5 {[%clk 0:00:14]} 50. Kxg5 {[%clk 0:01:11]}  Rg2+ {[%clk 0:00:14]} 51. Kh4 {[%clk 0:01:05]}  Kf4 {[%clk 0:00:14]} 52. Rf6+ {[%clk 0:00:50]}  Ke5 {[%clk 0:00:13]} 53. Rf8 {[%clk 0:00:37]}  Rb2 {[%clk 0:00:13]} 54. f4+ {[%clk 0:00:37]}  Ke6 {[%clk 0:00:12]} 55. Kg5 {[%clk 0:00:34]}  Rxb3 {[%clk 0:00:12]} 56. Rf6+ {[%clk 0:00:27]}  Ke7 {[%clk 0:00:12]} 57. Rb6 {[%clk 0:00:28]}  Rb1 {[%clk 0:00:09]} 58. Rb7+ {[%clk 0:00:27]}  Ke8 {[%clk 0:00:08]} 59. f5 {[%clk 0:00:24]}  b3 {[%clk 0:00:08]} 60. Kf6 {[%clk 0:00:24]}  b2 {[%clk 0:00:07]} 61. Rb3 {[%clk 0:00:25]}  Kd7 {[%clk 0:00:06]} 62. Rd3+ {[%clk 0:00:25]}  Ke8 {[%clk 0:00:07]} 63. Rd2 {[%clk 0:00:25]}  Ra1 {[%clk 0:00:02]} 64. Rxb2 {[%clk 0:00:25]}  Ra6+ {[%clk 0:00:02]} 65. Kg7 {[%clk 0:00:25]}  Ra7+ {[%clk 0:00:03]} 66. Kg6 {[%clk 0:00:26]}  Ra8 {[%clk 0:00:02]} 67. f6 {[%clk 0:00:24]}  Ra1 {[%clk 0:00:01]} 68. f7+ {[%clk 0:00:22]} 1-0


[Site "https://www.chess.com"]

[Event "Titled Tuesday Blitz March 01 Early 2022"]
[White "Van Foreest, Jorden"]
[Black "Mosadeghpour, Masoud"]
[WhiteFideId "1039784"]
[BlackFideId "12519278"]
[WhiteElo "2995"]
[BlackElo "2900"]
[Result "0-1"]
[Round "09"]
[TimeControl "180+1"]
[Date "2022.03.01"]
[WhiteClock "0:00:02"]
[BlackClock "0:00:05"]

1. e4 {[%clk 0:03:00]}  c5 {[%clk 0:02:59]} 2. Nf3 {[%clk 0:03:00]}  d6 {[%clk 0:03:00]} 3. Bc4 {[%clk 0:02:58]}  Nc6 {[%clk 0:02:55]} 4. O-O {[%clk 0:02:56]}  Nf6 {[%clk 0:02:54]} 5. Re1 {[%clk 0:02:55]}  e6 {[%clk 0:02:51]} 6. Nc3 {[%clk 0:02:51]}  Be7 {[%clk 0:02:51]} 7. d4 {[%clk 0:02:51]}  cxd4 {[%clk 0:02:50]} 8. Nxd4 {[%clk 0:02:51]}  O-O {[%clk 0:02:50]} 9. a4 {[%clk 0:02:40]}  a6 {[%clk 0:02:46]} 10. Nxc6 {[%clk 0:02:37]}  bxc6 {[%clk 0:02:42]} 11. a5 {[%clk 0:02:31]}  d5 {[%clk 0:02:36]} 12. Bd3 {[%clk 0:02:31]}  Rb8 {[%clk 0:02:29]} 13. Ra4 {[%clk 0:02:21]}  Rb4 {[%clk 0:02:27]} 14. e5 {[%clk 0:02:09]}  Nd7 {[%clk 0:02:21]} 15. Rxb4 {[%clk 0:02:09]}  Bxb4 {[%clk 0:02:21]} 16. Qg4 {[%clk 0:02:10]}  Qxa5 {[%clk 0:01:37]} 17. Bh6 {[%clk 0:02:09]}  g6 {[%clk 0:01:35]} 18. Bxf8 {[%clk 0:01:56]}  Bxf8 {[%clk 0:01:34]} 19. h4 {[%clk 0:01:29]}  Bg7 {[%clk 0:01:16]} 20. Qa4 {[%clk 0:00:53]}  Qb6 {[%clk 0:00:58]} 21. h5 {[%clk 0:00:40]}  Bxe5 {[%clk 0:00:54]} 22. hxg6 {[%clk 0:00:40]}  hxg6 {[%clk 0:00:55]} 23. Nd1 {[%clk 0:00:33]}  Kg7 {[%clk 0:00:49]} 24. Qh4 {[%clk 0:00:32]}  Bf6 {[%clk 0:00:48]} 25. Qh2 {[%clk 0:00:31]}  c5 {[%clk 0:00:44]} 26. Ne3 {[%clk 0:00:31]}  c4 {[%clk 0:00:39]} 27. Be2 {[%clk 0:00:26]}  Qxb2 {[%clk 0:00:20]} 28. Ng4 {[%clk 0:00:25]}  Bc3 {[%clk 0:00:14]} 29. Rf1 {[%clk 0:00:24]}  Qxc2 {[%clk 0:00:13]} 30. Bf3 {[%clk 0:00:24]}  Qd2 {[%clk 0:00:07]} 31. Qc7 {[%clk 0:00:24]}  Nf6 {[%clk 0:00:03]} 32. Nxf6 {[%clk 0:00:23]}  Bxf6 {[%clk 0:00:04]} 33. Qxc8 {[%clk 0:00:23]}  c3 {[%clk 0:00:04]} 34. Rd1 {[%clk 0:00:20]}  Qb2 {[%clk 0:00:03]} 35. Rf1 {[%clk 0:00:06]}  c2 {[%clk 0:00:04]} 36. g3 {[%clk 0:00:02]}  Bg5 {[%clk 0:00:03]} 37. Qxa6 {[%clk 0:00:01]}  c1=Q {[%clk 0:00:03]} 38. Rxc1 {[%clk 0:00:02]}  Qxc1+ {[%clk 0:00:04]} 39. Kg2 {[%clk 0:00:02]}  Qc3 {[%clk 0:00:05]} 40. Qe2 {[%clk 0:00:02]}  Bf6 {[%clk 0:00:05]} 41. Bg4 {[%clk 0:00:03]}  Qd4 {[%clk 0:00:05]} 42. Bf3 {[%clk 0:00:03]}  e5 {[%clk 0:00:06]} 43. Bg4 {[%clk 0:00:02]}  e4 {[%clk 0:00:06]} 44. Qb5 {[%clk 0:00:02]}  Qe5 {[%clk 0:00:06]} 45. Qd7 {[%clk 0:00:02]}  d4 {[%clk 0:00:05]} 46. Bd1 {[%clk 0:00:03]}  e3 {[%clk 0:00:05]} 47. Bb3 {[%clk 0:00:03]}  Be7 {[%clk 0:00:05]} 48. fxe3 {[%clk 0:00:01]}  dxe3 {[%clk 0:00:06]} 49. Qd5 {[%clk 0:00:01]}  Qf6 {[%clk 0:00:05]} 50. Qf3 {[%clk 0:00:02]}  Qb2+ {[%clk 0:00:05]} 51. Kh3 {[%clk 0:00:02]}  Qxb3 {[%clk 0:00:05]} 0-1


[Site "https://www.chess.com"]

[Event "Titled Tuesday Blitz March 01 Early 2022"]
[White "Vifleemskaia, Svetlana"]
[Black "Yushko, Olga"]
[WhiteFideId "4129490"]
[BlackFideId "14114500"]
[WhiteElo "1901"]
[BlackElo "2028"]
[Result "0-1"]
[Round "09"]
[TimeControl "180+1"]
[Date "2022.03.01"]
[WhiteClock "0:00:01"]
[BlackClock "0:00:52"]

1. d4 {[%clk 0:02:50]}  e6 {[%clk 0:02:56]} 2. c4 {[%clk 0:02:50]}  f5 {[%clk 0:02:56]} 3. Nf3 {[%clk 0:02:47]}  Nf6 {[%clk 0:02:57]} 4. Qc2 {[%clk 0:02:46]}  d6 {[%clk 0:02:56]} 5. Bf4 {[%clk 0:02:46]}  Be7 {[%clk 0:02:56]} 6. Nc3 {[%clk 0:02:45]}  O-O {[%clk 0:02:56]} 7. e4 {[%clk 0:02:37]}  Nxe4 {[%clk 0:02:56]} 8. Nxe4 {[%clk 0:02:37]}  fxe4 {[%clk 0:02:57]} 9. Qxe4 {[%clk 0:02:37]}  d5 {[%clk 0:02:57]} 10. Qe3 {[%clk 0:02:27]}  Bb4+ {[%clk 0:02:50]} 11. Kd1 {[%clk 0:02:27]}  c5 {[%clk 0:02:48]} 12. a3 {[%clk 0:02:12]}  cxd4 {[%clk 0:02:44]} 13. Qxd4 {[%clk 0:02:09]}  Be7 {[%clk 0:02:39]} 14. Bg3 {[%clk 0:01:32]}  dxc4 {[%clk 0:02:33]} 15. Qxd8 {[%clk 0:01:31]}  Rxd8+ {[%clk 0:02:34]} 16. Kc2 {[%clk 0:01:30]}  b5 {[%clk 0:02:33]} 17. b3 {[%clk 0:01:29]}  cxb3+ {[%clk 0:02:31]} 18. Kxb3 {[%clk 0:01:29]}  a6 {[%clk 0:02:31]} 19. Be2 {[%clk 0:01:19]}  Nc6 {[%clk 0:02:31]} 20. Rhd1 {[%clk 0:01:17]}  Bb7 {[%clk 0:02:27]} 21. Bc7 {[%clk 0:01:06]}  Rd5 {[%clk 0:02:20]} 22. Rxd5 {[%clk 0:00:57]}  exd5 {[%clk 0:02:21]} 23. Rd1 {[%clk 0:00:57]}  Rc8 {[%clk 0:02:17]} 24. Bb6 {[%clk 0:00:55]}  Nb8 {[%clk 0:02:11]} 25. Ne5 {[%clk 0:00:45]}  Bf6 {[%clk 0:02:06]} 26. f4 {[%clk 0:00:40]}  Re8 {[%clk 0:02:05]} 27. Bc7 {[%clk 0:00:17]}  Bxe5 {[%clk 0:02:02]} 28. fxe5 {[%clk 0:00:16]}  Nd7 {[%clk 0:01:59]} 29. Bf3 {[%clk 0:00:15]}  Kf7 {[%clk 0:01:42]} 30. Bxd5+ {[%clk 0:00:14]}  Bxd5+ {[%clk 0:01:40]} 31. Rxd5 {[%clk 0:00:15]}  Nf8 {[%clk 0:01:35]} 32. Rd2 {[%clk 0:00:11]}  Ng6 {[%clk 0:01:31]} 33. Rd7+ {[%clk 0:00:10]}  Kg8 {[%clk 0:01:31]} 34. Rd5 {[%clk 0:00:09]}  Nf4 {[%clk 0:01:30]} 35. Rc5 {[%clk 0:00:07]}  Nxg2 {[%clk 0:01:29]} 36. Rc6 {[%clk 0:00:07]}  Nf4 {[%clk 0:01:28]} 37. Rxa6 {[%clk 0:00:07]}  Nd5 {[%clk 0:01:28]} 38. Bd6 {[%clk 0:00:06]}  Rc8 {[%clk 0:01:15]} 39. Ra5 {[%clk 0:00:06]}  Rc3+ {[%clk 0:01:14]} 40. Kb2 {[%clk 0:00:06]}  Rh3 {[%clk 0:01:14]} 41. e6 {[%clk 0:00:05]}  g5 {[%clk 0:01:09]} 42. Rxb5 {[%clk 0:00:05]}  Nf6 {[%clk 0:01:07]} 43. Rxg5+ {[%clk 0:00:05]}  Kh8 {[%clk 0:01:05]} 44. Be5 {[%clk 0:00:04]}  h6 {[%clk 0:01:04]} 45. Rg6 {[%clk 0:00:04]}  Kh7 {[%clk 0:01:02]} 46. Rxf6 {[%clk 0:00:04]}  Re3 {[%clk 0:01:02]} 47. Rf5 {[%clk 0:00:04]}  Kg6 {[%clk 0:01:01]} 48. Bd4 {[%clk 0:00:03]}  Re2+ {[%clk 0:01:01]} 49. Kc3 {[%clk 0:00:01]}  Kxf5 {[%clk 0:01:01]} 50. e7 {[%clk 0:00:02]}  Rxe7 {[%clk 0:01:01]} 51. Kd3 {[%clk 0:00:03]}  Rb7 {[%clk 0:01:00]} 52. Bc5 {[%clk 0:00:03]}  Rb2 {[%clk 0:00:59]} 53. h4 {[%clk 0:00:03]}  Kg4 {[%clk 0:00:59]} 54. Be7 {[%clk 0:00:03]}  Rb3+ {[%clk 0:00:58]} 55. Kc4 {[%clk 0:00:03]}  Re3 {[%clk 0:00:58]} 56. Bd8 {[%clk 0:00:02]}  Re8 {[%clk 0:00:54]} 57. Bf6 {[%clk 0:00:01]}  Re6 {[%clk 0:00:53]} 58. Bd8 {[%clk 0:00:02]}  Rd6 {[%clk 0:00:53]} 59. Be7 {[%clk 0:00:02]}  Rd7 {[%clk 0:00:53]} 60. Bf6 {[%clk 0:00:02]}  Kf5 {[%clk 0:00:53]} 61. Bc3 {[%clk 0:00:01]}  Ke4 {[%clk 0:00:52]} 0-1


[Site "https://www.chess.com"]

[Event "Titled Tuesday Blitz March 01 Early 2022"]
[White "Vivas Zamora, Fabian Ernesto"]
[Black "Ardila, Oscar Humberto"]
[WhiteFideId "3902480"]
[BlackFideId "4404742"]
[WhiteElo "1966"]
[BlackElo "1898"]
[Result "1-0"]
[Round "09"]
[TimeControl "180+1"]
[Date "2022.03.01"]
[WhiteClock "0:00:01"]
[BlackClock "0:00:04"]

1. c4 {[%clk 0:02:56]}  Nf6 {[%clk 0:02:59]} 2. Nc3 {[%clk 0:02:52]}  e6 {[%clk 0:02:59]} 3. e4 {[%clk 0:02:52]}  d6 {[%clk 0:02:58]} 4. d4 {[%clk 0:02:50]}  Be7 {[%clk 0:02:58]} 5. f4 {[%clk 0:02:45]}  Nbd7 {[%clk 0:02:57]} 6. Nf3 {[%clk 0:02:43]}  O-O {[%clk 0:02:57]} 7. e5 {[%clk 0:02:42]}  Ne8 {[%clk 0:02:56]} 8. Bd3 {[%clk 0:02:37]}  f5 {[%clk 0:02:55]} 9. exf6 {[%clk 0:02:31]}  Nexf6 {[%clk 0:02:47]} 10. Qe2 {[%clk 0:02:23]}  Nb6 {[%clk 0:02:46]} 11. Ng5 {[%clk 0:02:16]}  e5 {[%clk 0:02:32]} 12. fxe5 {[%clk 0:02:10]}  dxe5 {[%clk 0:02:32]} 13. dxe5 {[%clk 0:02:09]}  Bg4 {[%clk 0:02:32]} 14. Qc2 {[%clk 0:01:38]}  Nfd7 {[%clk 0:02:10]} 15. Bxh7+ {[%clk 0:01:31]}  Kh8 {[%clk 0:02:09]} 16. h3 {[%clk 0:00:38]}  Bf5 {[%clk 0:01:54]} 17. Bxf5 {[%clk 0:00:36]}  Bxg5 {[%clk 0:01:54]} 18. O-O {[%clk 0:00:30]}  Nxe5 {[%clk 0:01:46]} 19. Qe4 {[%clk 0:00:26]}  Nexc4 {[%clk 0:01:33]} 20. Qg4 {[%clk 0:00:24]}  Bxc1 {[%clk 0:01:17]} 21. Raxc1 {[%clk 0:00:12]}  Qd6 {[%clk 0:01:11]} 22. Bg6 {[%clk 0:00:09]}  Qc5+ {[%clk 0:00:40]} 23. Kh1 {[%clk 0:00:09]}  Qe3 {[%clk 0:00:39]} 24. Rce1 {[%clk 0:00:08]}  Qh6 {[%clk 0:00:39]} 25. Rxf8+ {[%clk 0:00:07]}  Rxf8 {[%clk 0:00:38]} 26. Qf5 {[%clk 0:00:05]}  Rg8 {[%clk 0:00:23]} 27. Qf7 {[%clk 0:00:05]}  Nd6 {[%clk 0:00:19]} 28. Qe6 {[%clk 0:00:02]}  Nbc4 {[%clk 0:00:16]} 29. Re4 {[%clk 0:00:01]}  Qc1+ {[%clk 0:00:14]} 30. Re1 {[%clk 0:00:01]}  Qg5 {[%clk 0:00:13]} 31. b3 {[%clk 0:00:01]}  Nd2 {[%clk 0:00:06]} 32. Re5 {[%clk 0:00:01]}  Qh6 {[%clk 0:00:05]} 33. Rh5 {[%clk 0:00:01]}  Rf8 {[%clk 0:00:03]} 34. Rxh6+ {[%clk 0:00:01]}  gxh6 {[%clk 0:00:04]} 35. Kh2 {[%clk 0:00:01]}  Kg7 {[%clk 0:00:04]} 36. Bd3 {[%clk 0:00:01]} 1-0


[Site "https://www.chess.com"]

[Event "Titled Tuesday Blitz March 01 Early 2022"]
[White "Winkels, Marcel"]
[Black "Mohammadian, Mohammad"]
[WhiteFideId "1003887"]
[BlackFideId "12566055"]
[WhiteElo "1900"]
[BlackElo "1543"]
[Result "0-1"]
[Round "09"]
[TimeControl "180+1"]
[Date "2022.03.01"]
[WhiteClock "0:00:07"]
[BlackClock "0:00:13"]

1. b3 {[%clk 0:03:00]}  Nf6 {[%clk 0:02:58]} 2. Bb2 {[%clk 0:03:00]}  d5 {[%clk 0:02:57]} 3. Nf3 {[%clk 0:02:59]}  c5 {[%clk 0:02:57]} 4. e3 {[%clk 0:02:58]}  Nc6 {[%clk 0:02:57]} 5. Bb5 {[%clk 0:02:58]}  Bd7 {[%clk 0:02:56]} 6. O-O {[%clk 0:02:48]}  e6 {[%clk 0:02:55]} 7. Bxc6 {[%clk 0:02:40]}  Bxc6 {[%clk 0:02:54]} 8. Ne5 {[%clk 0:02:40]}  Bd6 {[%clk 0:02:51]} 9. f4 {[%clk 0:02:40]}  O-O {[%clk 0:02:46]} 10. d3 {[%clk 0:02:38]}  Qc7 {[%clk 0:02:43]} 11. Nd2 {[%clk 0:02:36]}  Nd7 {[%clk 0:02:33]} 12. Nxd7 {[%clk 0:02:15]}  Qxd7 {[%clk 0:02:30]} 13. Qg4 {[%clk 0:02:14]}  f6 {[%clk 0:02:11]} 14. Nf3 {[%clk 0:02:02]}  Rae8 {[%clk 0:02:08]} 15. Rae1 {[%clk 0:01:59]}  e5 {[%clk 0:01:59]} 16. Qxd7 {[%clk 0:01:58]}  Bxd7 {[%clk 0:01:58]} 17. fxe5 {[%clk 0:01:58]}  fxe5 {[%clk 0:01:57]} 18. Nd2 {[%clk 0:01:39]}  h6 {[%clk 0:01:50]} 19. c4 {[%clk 0:01:36]}  d4 {[%clk 0:01:48]} 20. Ne4 {[%clk 0:01:32]}  Rxf1+ {[%clk 0:01:42]} 21. Rxf1 {[%clk 0:01:27]}  Be7 {[%clk 0:01:35]} 22. exd4 {[%clk 0:01:26]}  exd4 {[%clk 0:01:34]} 23. b4 {[%clk 0:01:16]}  b6 {[%clk 0:01:33]} 24. bxc5 {[%clk 0:01:13]}  bxc5 {[%clk 0:01:31]} 25. Ba3 {[%clk 0:01:14]}  Bc6 {[%clk 0:01:23]} 26. Re1 {[%clk 0:00:56]}  Bxe4 {[%clk 0:01:19]} 27. Rxe4 {[%clk 0:00:55]}  Kf7 {[%clk 0:01:16]} 28. Re5 {[%clk 0:00:54]}  Rc8 {[%clk 0:01:12]} 29. g3 {[%clk 0:00:48]}  a6 {[%clk 0:01:12]} 30. Rd5 {[%clk 0:00:39]}  Ke6 {[%clk 0:01:07]} 31. Kf2 {[%clk 0:00:36]}  g5 {[%clk 0:01:05]} 32. Kf3 {[%clk 0:00:35]}  h5 {[%clk 0:01:03]} 33. Ke4 {[%clk 0:00:34]}  Kf6 {[%clk 0:00:56]} 34. Rf5+ {[%clk 0:00:31]}  Kg6 {[%clk 0:00:54]} 35. Rf2 {[%clk 0:00:29]}  Re8 {[%clk 0:00:52]} 36. Kd5 {[%clk 0:00:28]}  Rc8 {[%clk 0:00:47]} 37. Rb2 {[%clk 0:00:25]}  h4 {[%clk 0:00:45]} 38. Rb6+ {[%clk 0:00:24]}  Kh5 {[%clk 0:00:44]} 39. Rxa6 {[%clk 0:00:23]}  hxg3 {[%clk 0:00:43]} 40. hxg3 {[%clk 0:00:23]}  Kg4 {[%clk 0:00:43]} 41. Re6 {[%clk 0:00:19]}  Bf8 {[%clk 0:00:41]} 42. Re5 {[%clk 0:00:18]}  Bh6 {[%clk 0:00:28]} 43. Re6 {[%clk 0:00:15]}  Bf8 {[%clk 0:00:27]} 44. Re5 {[%clk 0:00:14]}  Kxg3 {[%clk 0:00:19]} 45. Rxg5+ {[%clk 0:00:13]}  Kf4 {[%clk 0:00:18]} 46. Rg6 {[%clk 0:00:11]}  Ke3 {[%clk 0:00:16]} 47. Rg3+ {[%clk 0:00:08]}  Kf4 {[%clk 0:00:15]} 48. Rh3 {[%clk 0:00:08]}  Kg4 {[%clk 0:00:15]} 49. Rh7 {[%clk 0:00:07]}  Kf3 {[%clk 0:00:13]} 0-1


[Site "https://www.chess.com"]

[Event "Titled Tuesday Blitz March 01 Early 2022"]
[White "Wong, Yinn Long"]
[Black "Manolache, Marius"]
[WhiteFideId "5707684"]
[BlackFideId "1201530"]
[WhiteElo "2055"]
[BlackElo "2389"]
[Result "1-0"]
[Round "09"]
[TimeControl "180+1"]
[Date "2022.03.01"]
[WhiteClock "0:00:11"]
[BlackClock "0:00:21"]

1. e4 {[%clk 0:03:00]}  c5 {[%clk 0:02:59]} 2. Nc3 {[%clk 0:03:00]}  a6 {[%clk 0:02:58]} 3. g3 {[%clk 0:03:00]}  Nc6 {[%clk 0:02:58]} 4. Bg2 {[%clk 0:03:01]}  g6 {[%clk 0:02:59]} 5. d3 {[%clk 0:03:00]}  Bg7 {[%clk 0:02:58]} 6. Nge2 {[%clk 0:03:00]}  Nd4 {[%clk 0:02:58]} 7. O-O {[%clk 0:03:00]}  d6 {[%clk 0:02:58]} 8. Rb1 {[%clk 0:02:59]}  e5 {[%clk 0:02:56]} 9. a3 {[%clk 0:02:49]}  Ne7 {[%clk 0:02:56]} 10. b4 {[%clk 0:02:49]}  O-O {[%clk 0:02:53]} 11. Be3 {[%clk 0:02:41]}  b5 {[%clk 0:02:49]} 12. Qd2 {[%clk 0:02:38]}  Be6 {[%clk 0:02:45]} 13. f4 {[%clk 0:02:27]}  f6 {[%clk 0:02:44]} 14. fxe5 {[%clk 0:01:59]}  fxe5 {[%clk 0:02:42]} 15. Rxf8+ {[%clk 0:01:59]}  Qxf8 {[%clk 0:02:39]} 16. Rf1 {[%clk 0:02:00]}  Qe8 {[%clk 0:02:36]} 17. bxc5 {[%clk 0:01:51]}  dxc5 {[%clk 0:02:36]} 18. Nd5 {[%clk 0:01:49]}  Rc8 {[%clk 0:02:27]} 19. c3 {[%clk 0:01:22]}  Nxe2+ {[%clk 0:02:19]} 20. Qxe2 {[%clk 0:01:23]}  c4 {[%clk 0:02:12]} 21. Bg5 {[%clk 0:01:01]}  Nxd5 {[%clk 0:02:06]} 22. exd5 {[%clk 0:01:01]}  Bf5 {[%clk 0:02:06]} 23. dxc4 {[%clk 0:00:50]}  bxc4 {[%clk 0:02:06]} 24. d6 {[%clk 0:00:40]}  Qd7 {[%clk 0:02:04]} 25. Bd5+ {[%clk 0:00:32]}  Kh8 {[%clk 0:02:03]} 26. Be7 {[%clk 0:00:21]}  Bd3 {[%clk 0:01:59]} 27. Qe3 {[%clk 0:00:16]}  Bxf1 {[%clk 0:01:51]} 28. Kxf1 {[%clk 0:00:17]}  Qf5+ {[%clk 0:01:24]} 29. Kg2 {[%clk 0:00:16]}  e4 {[%clk 0:01:21]} 30. Qxe4 {[%clk 0:00:11]}  Qxe4+ {[%clk 0:00:58]} 31. Bxe4 {[%clk 0:00:11]}  Rb8 {[%clk 0:00:55]} 32. d7 {[%clk 0:00:11]}  Be5 {[%clk 0:00:54]} 33. d8=Q+ {[%clk 0:00:09]}  Rxd8 {[%clk 0:00:53]} 34. Bxd8 {[%clk 0:00:10]}  Bxc3 {[%clk 0:00:54]} 35. Bd5 {[%clk 0:00:10]}  Kg7 {[%clk 0:00:53]} 36. Bxc4 {[%clk 0:00:10]}  a5 {[%clk 0:00:52]} 37. a4 {[%clk 0:00:10]}  h5 {[%clk 0:00:50]} 38. h4 {[%clk 0:00:09]}  Bb4 {[%clk 0:00:49]} 39. Kf3 {[%clk 0:00:09]}  Kh6 {[%clk 0:00:47]} 40. Bf6 {[%clk 0:00:09]}  Bd6 {[%clk 0:00:46]} 41. Bg5+ {[%clk 0:00:09]}  Kg7 {[%clk 0:00:45]} 42. Bd2 {[%clk 0:00:10]}  Bc7 {[%clk 0:00:45]} 43. Bf4 {[%clk 0:00:11]}  Bb6 {[%clk 0:00:44]} 44. Ke4 {[%clk 0:00:11]}  Kf6 {[%clk 0:00:44]} 45. Be3 {[%clk 0:00:11]}  Bc7 {[%clk 0:00:44]} 46. Bg5+ {[%clk 0:00:12]}  Kg7 {[%clk 0:00:44]} 47. Bf4 {[%clk 0:00:13]}  Bb6 {[%clk 0:00:44]} 48. Kd5 {[%clk 0:00:13]}  Kf6 {[%clk 0:00:44]} 49. Kc6 {[%clk 0:00:14]}  Bf2 {[%clk 0:00:42]} 50. Bd3 {[%clk 0:00:14]}  Be1 {[%clk 0:00:42]} 51. Kb5 {[%clk 0:00:15]}  Kf7 {[%clk 0:00:42]} 52. Be5 {[%clk 0:00:14]}  Ke6 {[%clk 0:00:39]} 53. Bc7 {[%clk 0:00:13]}  Kf7 {[%clk 0:00:39]} 54. Kc6 {[%clk 0:00:13]}  Kg7 {[%clk 0:00:37]} 55. Be5+ {[%clk 0:00:12]}  Kf7 {[%clk 0:00:37]} 56. Bc4+ {[%clk 0:00:13]}  Ke7 {[%clk 0:00:36]} 57. Kd5 {[%clk 0:00:13]}  Bd2 {[%clk 0:00:35]} 58. Ke4 {[%clk 0:00:13]}  Be1 {[%clk 0:00:35]} 59. Bf4 {[%clk 0:00:11]}  Kf6 {[%clk 0:00:34]} 60. Kf3 {[%clk 0:00:10]}  Kg7 {[%clk 0:00:33]} 61. Ke2 {[%clk 0:00:11]}  Bb4 {[%clk 0:00:33]} 62. Bd2 {[%clk 0:00:11]}  Bd6 {[%clk 0:00:33]} 63. Bxa5 {[%clk 0:00:11]}  Bxg3 {[%clk 0:00:32]} 64. Be1 {[%clk 0:00:12]}  Bb8 {[%clk 0:00:31]} 65. a5 {[%clk 0:00:12]}  Kf6 {[%clk 0:00:29]} 66. Kf3 {[%clk 0:00:10]}  g5 {[%clk 0:00:28]} 67. Bc3+ {[%clk 0:00:09]}  Kg6 {[%clk 0:00:27]} 68. Bd3+ {[%clk 0:00:09]}  Kh6 {[%clk 0:00:23]} 69. Bd2 {[%clk 0:00:09]}  Bc7 {[%clk 0:00:21]} 70. hxg5+ {[%clk 0:00:09]}  Kg7 {[%clk 0:00:22]} 71. a6 {[%clk 0:00:10]}  Bb6 {[%clk 0:00:21]} 72. Be3 {[%clk 0:00:11]} 1-0


[Site "https://www.chess.com"]